bitfinex-derivatives/quotes_ETHF0:USTF0_20250104
["timestamp","ask_amount","ask_price","bid_price","bid_amount"]
[1736001450557,0.27454,3643.3,3643.2,0.27454]
[1736001450749,3.92014328,3643.4,3643.3,0.27454]
[1736001451557,3.50827925,3643.4,3643.3,0.27454]
[1736001452260,3.23374925,3643.4,3643.3,0.27454]
[1736001452466,3.23374925,3643.4,3643.3,3.48234]
[1736001452863,3.23374925,3643.4,3643.3,0.27454]
[1736001453066,4.58395012,3643.6,3643.2,4.31580218]
[1736001453255,4.58395012,3643.6,3643.5,0.27452]
[1736001453662,0.27453,3643.5,3643.4,0.27453]
[1736001454570,0.68637923,3643.5,3643.4,0.27453]
[1736001456262,0.41184923,3643.5,3643.4,0.27453]
[1736001456665,0.68636923,3643.5,3643.4,0.27453]
[1736001456872,0.41184923,3643.5,3643.4,0.27453]
[1736001457365,4.72127935,3643.6,3643.5,0.27453]
[1736001457868,4.99580935,3643.6,3643.2,4.31580218]
[1736001458062,4.72127935,3643.6,3643.2,4.31580218]
[1736001458360,0.68636923,3643.6,3643.5,0.27453]
[1736001459565,4.99579935,3643.6,3643.5,0.27453]
[1736001461979,0.27453,3643.5,3643.4,0.27453]
[1736001462367,1.26946383,3643.5,3643.4,0.27453]
[1736001464473,1.68131306,3643.5,3643.4,0.27453]
[1736001465770,1.40678306,3643.5,3643.4,0.27453]
[1736001466579,1.68131306,3643.5,3643.4,0.27453]
[1736001466778,1.40678306,3643.5,3643.4,0.27453]
[1736001468174,1.68131306,3643.5,3643.4,0.27453]
[1736001468769,1.40678306,3643.5,3643.4,0.27453]
[1736001469978,4.644925,3643.5,3643.4,0.27453]
[1736001471377,4.919455,3643.5,3643.4,0.27453]
[1736001471577,1.40678306,3643.5,3643.4,0.27453]
[1736001472777,0.99493383,3643.5,3643.4,0.27453]
[1736001473973,4.30943012,3643.6,3643.3,7.52360218]
[1736001474278,4.30943012,3643.6,3643.5,0.27453]
[1736001474576,4.30943012,3643.7,3643.6,0.27452]
[1736001475875,0.41182426,3643.7,3643.6,0.27452]
[1736001476277,0.41182426,3643.7,3643.6,1.17362]
[1736001482082,0.41182426,3643.7,3643.6,5.48942218]
[1736001482881,0.68633426,3643.7,3643.6,5.48942218]
[1736001483082,0.41182426,3643.7,3643.6,5.48942218]
[1736001484585,0.41182426,3643.7,3643.6,1.17362]
[1736001485582,0.68633426,3643.7,3643.6,0.8991]
[1736001485778,1.57783426,3643.7,3643.6,1.17362]
[1736001487185,1.30332426,3643.7,3643.6,1.17362]
[1736001487582,1.30332426,3643.7,3643.6,5.49337395]
[1736001489282,1.57783426,3643.7,3643.6,5.49337395]
[1736001489785,5.88726438,3643.7,3643.6,1.17362]
[1736001490179,5.61275438,3643.7,3643.6,1.17362]
[1736001491184,5.88726438,3643.7,3643.6,1.17362]
[1736001492384,1.57783426,3643.7,3643.6,1.17362]
[1736001492985,1.57783426,3643.7,3643.6,0.8991]
[1736001493287,1.57783426,3643.7,3643.6,1.17362]
[1736001493682,1.57783426,3643.7,3643.6,0.8991]
[1736001493894,0.27452,3643.6,3643.5,4.31975395]
[1736001494095,1.26945383,3643.6,3643.5,4.31975395]
[1736001494781,0.27453,3643.4,3643.3,4.31975395]
[1736001494981,1.26946383,3643.4,3643.3,4.31975395]
[1736001495885,1.26946383,3643.4,3643.3,4.59429395]
[1736001496188,1.26946383,3643.4,3643.3,0.27454]
[1736001496189,1.68128809,3643.4,3643.3,0.27454]
[1736001496883,1.40675809,3643.4,3643.3,0.27454]
[1736001497082,0.41182426,3643.4,3643.3,0.27454]
[1736001497286,0.41182426,3643.4,3643.3,4.31074]
[1736001497482,0.41182426,3643.4,3643.3,8.63049395]
[1736001498887,3.23784814,3643.8,3643.3,11.98056685]
[1736001499084,3.23784814,3643.8,3643.7,1.26944383]
[1736001500384,3.51398158,3643.9,3643.8,0.2745]
[1736001500583,3.51398158,3643.9,3643.8,1.0924]
[1736001500784,3.51398158,3643.9,3643.8,1.9259]
[1736001501291,3.23948158,3643.9,3643.8,1.9259]
[1736001501487,6.72178158,3643.9,3643.6,6.47704541]
[1736001501689,1.26944383,3643.7,3643.6,6.47704541]
[1736001502789,1.26944383,3643.7,3643.6,6.75156541]
[1736001502986,1.40673205,3643.7,3643.5,0.27452]
[1736001503180,0.27452,3643.6,3643.5,0.27452]
[1736001503388,0.41179822,3643.7,3643.4,5.31278096]
[1736001503685,0.41179822,3643.7,3643.6,1.26945383]
[1736001504687,0.27613344,3643.9,3643.8,0.2745]
[1736001505588,0.68793166,3643.9,3643.8,0.2745]
[1736001505984,0.2745,3643.8,3643.7,1.14861]
[1736001506988,3.92077961,3643.8,3643.7,1.14861]
[1736001507789,3.92077961,3643.8,3643.7,0.8741]
[1736001508393,3.50898139,3643.8,3643.7,5.19147773]
[1736001509092,3.50898139,3643.8,3643.7,5.46598773]
[1736001509897,0.2745,3643.8,3643.7,0.8741]
[1736001510395,5.31246693,3643.9,3643.5,4.31737773]
[1736001510595,1.26945383,3643.6,3643.5,4.31737773]
[1736001510796,4.47725383,3643.6,3643.5,4.31737773]
[1736001510991,5.33635383,3643.6,3643.5,4.31737773]
[1736001511796,5.33635383,3643.6,3643.5,2.96267773]
[1736001512191,5.33635383,3643.6,3643.4,6.47704541]
[1736001512192,5.06183383,3643.6,3643.4,6.47704541]
[1736001512402,0.27453,3643.5,3643.4,6.47704541]
[1736001512592,0.27456,3643.1,3643.0,6.47704541]
[1736001512896,3.48236,3643.1,3643.0,6.47704541]
[1736001513798,4.47729383,3643.1,3643.0,6.47704541]
[1736001514000,4.47729383,3643.1,3642.4,6.75165541]
[1736001514001,9.3124958,3643.1,3642.4,6.75165541]
[1736001514194,2.20560739,3643.0,3642.4,6.75165541]
[1736001514396,0.2746,3642.5,3642.4,6.75165541]
[1736001514592,0.2746,3642.5,3642.4,6.47704541]
[1736001515500,2.4143,3642.5,3642.4,6.47704541]
[1736001515891,0.27464,3642.0,3641.9,0.8464]
[1736001516399,0.27464,3642.0,3641.9,1.12105]
[1736001517400,0.27464,3642.1,3641.9,1.12105]
[1736001518792,0.27464,3642.0,3641.9,1.12105]
[1736001518995,0.27464,3642.0,3641.9,0.8464]
[1736001520098,0.27464,3642.0,3641.9,1.12105]
[1736001520803,0.27464,3642.0,3641.9,0.8464]
[1736001521003,1.27464,3642.0,3641.9,0.8464]
[1736001522001,1.27464,3642.0,3641.9,1.12105]
[1736001522002,1.0,3642.0,3641.9,1.12105]
[1736001523506,1.0,3642.0,3641.9,1.96415]
[1736001527112,1.27464,3642.0,3641.9,1.96415]
[1736001527305,1.0,3642.0,3641.9,1.96415]
[1736001531912,3.20560739,3642.0,3641.0,3.2078]
[1736001532107,2.48027739,3641.7,3641.5,0.27467]
[1736001532909,0.27467,3641.7,3641.6,0.27467]
[1736001533111,0.27466,3641.8,3641.6,0.27467]
[1736001533410,0.8978,3641.9,3641.2,1.7465]
[1736001533615,1.17245,3641.9,3641.7,0.27466]
[1736001533817,1.17245,3641.9,3641.2,1.7465]
[1736001533818,0.27465,3641.9,3641.2,1.7465]
[1736001534022,1.0,3642.0,3641.2,1.7465]
[1736001534209,0.27465,3641.9,3641.8,0.27465]
[1736001534909,0.27465,3641.9,3641.7,0.27466]
[1736001535104,0.27465,3641.9,3641.8,0.8789]
[1736001535314,0.27469,3641.3,3641.1,0.2747]
[1736001535516,0.27469,3641.4,3641.2,0.2747]
[1736001536818,0.2747,3641.2,3641.1,0.27471]
[1736001537011,0.2747,3641.3,3641.0,3.2078]
[1736001537215,0.27471,3641.1,3641.0,3.48251]
[1736001537614,2.20560739,3641.4,3641.0,3.48251]
[1736001537816,0.27471,3641.2,3641.0,3.48251]
[1736001538317,0.27471,3641.2,3641.1,0.27471]
[1736001538909,0.27471,3641.2,3640.8,1.98893]
[1736001538910,0.27471,3641.1,3640.8,1.98893]
[1736001539116,0.27472,3640.9,3640.8,1.98893]
[1736001539713,0.27472,3640.9,3640.8,1.7142]
[1736001539915,0.27472,3641.0,3640.8,1.98893]
[1736001540217,0.27471,3641.1,3641.0,0.27471]
[1736001540613,3.48251,3641.2,3641.0,0.27471]
[1736001541117,3.48251,3641.2,3640.8,1.7142]
[1736001541413,3.48251,3641.2,3641.0,0.27471]
[1736001541614,0.27471,3641.1,3641.0,0.27471]
[1736001542419,0.27472,3641.0,3640.9,0.27472]
[1736001542616,0.27471,3641.1,3640.8,1.7142]
[1736001542815,0.27471,3641.1,3640.9,0.27472]
[1736001543015,0.27471,3641.1,3640.8,1.7142]
[1736001543217,3.2078,3641.2,3641.1,0.27471]
[1736001543624,2.20560739,3641.4,3640.8,1.7142]
[1736001543829,2.20560739,3641.4,3641.0,0.27471]
[1736001543830,0.27471,3641.1,3641.0,0.27471]
[1736001545719,2.20560739,3641.4,3640.8,1.7142]
[1736001545920,0.27471,3641.2,3641.1,0.27471]
[1736001546823,2.20560739,3641.4,3640.4,0.6869]
[1736001547022,2.48032739,3641.0,3640.4,1.553]
[1736001548220,2.20560739,3641.0,3640.4,0.8661]
[1736001548617,2.48032739,3641.0,3640.9,0.27472]
[1736001549029,2.20560739,3641.0,3640.9,0.27472]
[1736001549223,0.27471,3641.2,3641.0,0.27471]
[1736001549520,0.27471,3641.2,3641.1,1.6867]
[1736001551325,1.942,3641.5,3641.1,1.6867]
[1736001551532,0.2747,3641.3,3641.2,0.2747]
[1736001552229,5.41340739,3641.6,3641.1,1.6867]
[1736001552429,0.27469,3641.4,3641.3,0.27469]
[1736001552635,5.41340739,3641.6,3641.1,1.6867]
[1736001552930,0.27469,3641.3,3641.2,1.1186]
[1736001553937,0.27469,3641.3,3641.2,0.8439]
[1736001554945,0.27473,3640.9,3640.8,0.27473]
[1736001555137,0.27473,3640.9,3640.8,2.00263]
[1736001561044,0.27473,3640.9,3640.8,1.7279]
[1736001561249,0.27473,3640.9,3640.8,2.00263]
[1736001562248,0.27473,3640.9,3640.8,1.7279]
[1736001562448,0.27473,3640.9,3640.4,3.2078]
[1736001562449,0.27475,3640.5,3640.4,3.2078]
[1736001562648,0.27475,3640.5,3640.3,1.7598]
[1736001562649,0.27476,3640.4,3640.3,1.7598]
[1736001571548,0.27476,3640.4,3640.3,0.8734]
[1736001572056,0.27476,3640.4,3640.3,1.7172]
[1736001574161,0.27476,3640.4,3640.3,0.8734]
[1736001574554,0.27476,3640.4,3639.8,1.1491]
[1736001574756,0.27479,3640.0,3639.9,2.07369]
[1736001575555,0.27479,3640.0,3639.9,1.7989]
[1736001575855,0.27479,3640.0,3639.4,0.27483]
[1736001575856,0.27483,3639.5,3639.4,0.27483]
[1736001576062,0.27483,3639.5,3639.4,1.7989]
[1736001576262,3.48263,3639.5,3639.4,0.8853]
[1736001576458,0.27484,3639.3,3639.2,6.47704541]
[1736001576658,2.48044739,3639.3,3639.2,6.47704541]
[1736001577760,0.27485,3639.2,3639.1,0.8853]
[1736001577965,0.27485,3639.2,3639.1,1.16016]
[1736001578265,1.074,3639.5,3639.1,0.8853]
[1736001578469,2.15186429,3639.6,3639.4,0.27483]
[1736001578771,0.27482,3639.6,3639.5,1.7022]
[1736001580161,0.27482,3639.6,3639.5,1.97703]
[1736001580366,0.27482,3639.7,3639.5,1.97703]
[1736001581061,0.27482,3639.7,3639.6,0.27482]
[1736001581264,3.2078,3639.9,3639.5,1.7022]
[1736001581460,3.2078,3639.9,3639.8,0.27481]
[1736001587862,0.2748,3640.0,3639.9,0.2748]
[1736001590671,0.27479,3640.1,3640.0,0.27478]
[1736001591065,2.15186429,3640.4,3639.9,3.2078]
[1736001591268,2.15186429,3640.4,3640.3,0.27477]
[1736001591768,3.22779644,3640.5,3640.0,1.58018]
[1736001591769,2.15186429,3640.5,3640.4,0.27476]
[1736001593573,3.48253,3640.8,3640.7,0.27474]
[1736001594974,0.27473,3640.8,3640.7,0.27474]
[1736001595178,5.41340739,3640.9,3640.8,0.27473]
[1736001595974,3.2078,3640.9,3640.8,0.27473]
[1736001596183,2.15186429,3641.0,3640.9,0.27472]
[1736001596875,2.42658429,3641.0,3640.9,0.27472]
[1736001597487,3.2078,3641.4,3640.9,0.27472]
[1736001597672,2.15186429,3641.5,3641.4,0.27469]
[1736001598581,4.63215168,3641.5,3641.1,0.27471]
[1736001598881,0.27471,3641.1,3641.0,1.14641]
[1736001599370,0.27471,3641.1,3641.0,0.8717]
[1736001599575,2.20560739,3641.2,3640.8,0.27473]
[1736001599576,0.27473,3640.9,3640.8,0.27473]
[1736001600583,0.27472,3641.0,3640.9,0.27472]
[1736001600880,0.27471,3641.1,3641.0,0.27471]
[1736001601576,2.20560739,3641.2,3640.5,1.7613]
[1736001601877,2.20560739,3641.2,3641.1,0.27471]
[1736001602077,0.27471,3641.1,3641.0,0.27471]
[1736001603878,2.20560739,3641.2,3640.6,0.9087]
[1736001604081,2.20560739,3641.2,3641.1,0.27471]
[1736001606372,5.35966429,3641.5,3641.4,0.27469]
[1736001606777,5.63434429,3641.5,3641.4,0.27469]
[1736001606978,5.35966429,3641.5,3641.4,0.27469]
[1736001607575,3.2078,3641.5,3641.4,0.27469]
[1736001608386,3.48248,3641.5,3641.4,0.27469]
[1736001609288,2.15186429,3641.9,3641.8,0.27466]
[1736001610191,2.15186429,3641.9,3641.7,0.27466]
[1736001610192,0.27465,3641.9,3641.7,0.27466]
[1736001610390,0.27465,3641.9,3641.4,5.41340739]
[1736001610691,0.27465,3641.9,3641.8,0.27466]
[1736001613490,0.27465,3642.0,3641.8,0.27466]
[1736001613892,0.27465,3641.9,3641.5,0.27468]
[1736001614094,0.27465,3641.9,3641.7,0.27466]
[1736001614686,0.27464,3642.0,3641.7,0.27466]
[1736001614886,0.27465,3641.9,3641.7,0.27466]
[1736001615795,0.27464,3642.0,3641.8,0.27465]
[1736001616090,0.27464,3642.0,3641.9,1.11495]
[1736001616286,0.27464,3642.0,3641.9,0.8403]
[1736001618392,0.27464,3642.0,3641.9,2.92315]
[1736001618695,0.27464,3642.1,3641.9,2.6485]
[1736001618998,0.27464,3642.1,3641.9,2.92315]
[1736001619198,3.2078,3642.3,3641.9,2.6485]
[1736001619398,0.27464,3642.0,3641.9,2.92315]
[1736001619697,0.27464,3642.0,3641.9,2.6485]
[1736001624398,0.27464,3642.0,3641.9,2.92315]
[1736001625104,0.27464,3642.0,3641.9,2.6485]
[1736001626300,0.27464,3642.0,3641.9,1.7513]
[1736001627503,0.27464,3642.0,3641.9,2.02595]
[1736001628300,0.27464,3642.0,3641.9,1.7513]
[1736001628698,0.27464,3642.0,3641.9,2.02595]
[1736001628899,0.27464,3642.0,3641.9,1.7513]
[1736001629302,0.27464,3642.0,3641.9,2.02595]
[1736001629802,0.27464,3642.0,3641.9,1.7513]
[1736001631300,2.20560739,3642.2,3641.5,0.8582]
[1736001631505,2.20560739,3641.6,3640.6,8.63606055]
[1736001631808,0.27472,3641.0,3640.9,2.02062]
[1736001635005,0.27472,3641.0,3640.9,2.02063]
[1736001635212,2.15186429,3641.8,3640.9,4.9537]
[1736001635400,3.87746429,3641.8,3641.3,3.2078]
[1736001635603,0.27469,3641.4,3640.9,4.9537]
[1736001635807,3.87746429,3641.8,3641.2,0.2747]
[1736001635808,0.2747,3641.3,3641.2,0.2747]
[1736001636207,2.15186429,3641.7,3641.2,0.2747]
[1736001636403,2.15186429,3641.7,3640.9,4.9537]
[1736001636601,0.2747,3641.3,3641.2,0.2747]
[1736001638006,3.87746429,3641.8,3640.9,4.9537]
[1736001638209,0.2747,3641.4,3640.9,4.9537]
[1736001638408,0.2747,3641.4,3641.2,0.2747]
[1736001639204,0.2747,3641.4,3641.3,0.2747]
[1736001641107,0.27469,3641.5,3641.4,0.27469]
[1736001641510,0.27469,3641.5,3641.3,0.27469]
[1736001641704,0.27469,3641.4,3641.3,0.27469]
[1736001643407,2.15186429,3641.6,3641.1,6.50943772]
[1736001643613,2.15186429,3641.6,3641.5,0.27468]
[1736001645208,2.42653429,3641.6,3641.5,0.27468]
[1736001645411,0.27467,3641.6,3641.5,0.27468]
[1736001646409,0.27467,3641.6,3641.4,1.72]
[1736001646611,0.27467,3641.6,3641.5,0.27468]
[1736001647202,2.42653429,3641.6,3641.5,0.27468]
[1736001647609,2.15186429,3641.6,3641.5,0.27468]
[1736001648005,2.15186429,3641.6,3641.5,1.09428]
[1736001649611,2.15186429,3641.7,3641.5,0.8196]
[1736001649917,2.15186429,3641.7,3641.6,0.27467]
[1736001650418,2.42653429,3641.7,3641.6,0.27467]
[1736001652116,0.27467,3641.6,3641.5,1.09428]
[1736001653117,2.15186429,3641.6,3641.5,1.09428]
[1736001654414,2.42653429,3641.6,3641.5,1.09428]
[1736001655321,2.15186429,3641.6,3641.5,1.09428]
[1736001655713,2.42653429,3641.6,3641.5,1.09428]
[1736001657013,2.42653429,3641.6,3641.5,0.8196]
[1736001657219,0.27468,3641.5,3641.4,0.8738]
[1736001657417,0.8179,3641.5,3641.3,4.30383033]
[1736001657619,0.27469,3641.4,3641.3,4.30383033]
[1736001657817,3.48249,3641.4,3641.3,4.30383033]
[1736001658118,4.55449,3641.4,3641.3,4.30383033]
[1736001658321,5.55090429,3641.4,3641.3,4.30383033]
[1736001659119,0.27473,3640.8,3640.7,4.30383033]
[1736001659418,1.27114429,3640.8,3640.7,4.30383033]
[1736001660318,0.27475,3640.6,3640.4,2.82356]
[1736001660816,0.27476,3640.4,3640.3,4.30383033]
[1736001662220,0.27479,3640.1,3640.0,1.6827]
[1736001664824,0.27477,3640.3,3640.1,0.27478]
[1736001665426,0.27478,3640.2,3640.0,1.95749]
[1736001666426,0.27476,3640.5,3640.0,1.95749]
[1736001666726,5.4159639,3640.6,3640.0,1.6827]
[1736001666918,0.27478,3640.2,3640.0,1.6827]
[1736001667322,0.27479,3640.1,3640.0,1.6827]
[1736001667828,0.27478,3640.2,3640.0,1.95749]
[1736001668530,0.27479,3640.1,3640.0,1.6827]
[1736001673523,2.14713959,3640.7,3640.3,2.2081639]
[1736001673829,2.14713959,3640.7,3640.0,7.0986639]
[1736001674027,3.2078,3641.0,3640.3,2.2081639]
[1736001674332,3.2078,3641.0,3640.9,0.27473]
[1736001675425,2.14713959,3641.1,3640.8,3.2078]
[1736001675627,0.2747,3641.3,3640.8,3.2078]
[1736001675826,0.2747,3641.3,3641.1,0.27471]
[1736001676231,0.2747,3641.3,3641.2,0.7957]
[1736001680440,2.2081639,3641.3,3640.4,3.2078]
[1736001680633,0.27473,3640.9,3640.7,1.09514]
[1736001681441,41.07472,3641.1,3640.8,0.27473]
[1736001682033,41.07472,3641.1,3640.9,0.27472]
[1736001682237,41.07471,3641.1,3641.0,0.8253]
[1736001682536,41.07471,3641.1,3641.0,1.6393]
[1736001682744,0.27471,3641.1,3641.0,1.6393]
[1736001683642,0.27471,3641.2,3641.0,1.91402]
[1736001684140,0.27471,3641.1,3641.0,1.6393]
[1736001690645,0.27471,3641.2,3641.0,1.91402]
[1736001690944,0.27471,3641.2,3641.0,1.6393]
[1736001691246,0.27471,3641.2,3641.0,1.91402]
[1736001691437,3.48249,3641.4,3641.0,1.6393]
[1736001691638,2.14713959,3641.5,3641.4,0.27469]
[1736001692750,2.14713959,3641.5,3641.4,3.48249]
[1736001692946,3.22325333,3641.6,3641.5,0.27468]
[1736001693140,2.15035717,3642.1,3642.0,0.27464]
[1736001694438,0.8374,3642.4,3642.0,0.27464]
[1736001694735,0.8374,3642.4,3641.8,3.2078]
[1736001694941,4.09625333,3642.6,3641.9,0.8039]
[1736001695151,3.49785333,3642.6,3642.4,0.27461]
[1736001696456,3.2078,3642.7,3642.0,1.6359]
[1736001696746,3.2078,3642.7,3642.6,0.2746]
[1736001697649,3.2078,3642.7,3642.1,2.2081639]
[1736001697650,4.01245333,3643.0,3642.2,3.2078]
[1736001697944,4.01245333,3643.0,3642.7,0.27459]
[1736001697945,4.28702333,3643.0,3642.7,0.27459]
[1736001698340,1.06377,3643.0,3642.8,0.8324]
[1736001698541,1.06377,3643.0,3642.8,1.6836]
[1736001698940,0.27458,3642.9,3642.5,0.2746]
[1736001699142,0.27459,3642.8,3642.5,0.2746]
[1736001699538,3.48236,3643.1,3642.8,0.27458]
[1736001699739,3.2078,3643.1,3642.8,0.27458]
[1736001699947,3.48236,3643.1,3642.8,0.27458]
[1736001703153,0.27456,3643.1,3642.8,0.27458]
[1736001706254,0.27459,3642.8,3642.3,0.27462]
[1736001706445,0.27459,3642.8,3642.5,0.2746]
[1736001707546,0.27462,3642.3,3642.0,0.27464]
[1736001707748,1.89043,3642.2,3642.0,0.27464]
[1736001709346,0.27467,3641.7,3641.6,2.4819]
[1736001711156,0.27468,3641.6,3641.4,3.48249]
[1736001712955,0.27468,3641.5,3641.4,3.2078]
[1736001713256,3.2078,3641.8,3641.3,2.5536]
[1736001713649,0.27469,3641.4,3641.3,2.5536]
[1736001713844,0.27469,3641.5,3641.3,2.5536]
[1736001714050,0.27469,3641.4,3641.3,2.5536]
[1736001714246,3.2078,3641.8,3641.3,2.5536]
[1736001714462,0.27468,3641.6,3641.3,2.82829]
[1736001714757,0.27469,3641.5,3641.3,2.5536]
[1736001715056,0.27468,3641.6,3641.3,2.82829]
[1736001715660,0.8701,3642.1,3641.3,2.82829]
[1736001715850,0.27468,3641.5,3641.3,2.82829]
[1736001716152,0.27468,3641.6,3641.3,2.82829]
[1736001716361,0.27468,3641.5,3641.3,2.82829]
[1736001716750,0.27468,3641.5,3641.3,2.5536]
[1736001718061,0.27469,3641.4,3641.3,2.5536]
[1736001718358,1.5567,3642.1,3641.3,2.5536]
[1736001718359,0.8701,3642.1,3641.3,2.5536]
[1736001718559,0.27469,3641.4,3641.3,1.7142]
[1736001718758,2.2081639,3641.6,3641.0,3.2078]
[1736001719057,0.8,3641.3,3640.8,2.394]
[1736001719250,0.2747,3641.2,3640.9,0.27473]
[1736001719452,0.27472,3641.0,3640.9,0.27473]
[1736001720757,0.8,3641.3,3640.9,0.27473]
[1736001720959,0.27471,3641.1,3641.0,0.27472]
[1736001721460,0.8,3641.3,3640.8,2.394]
[1736001721664,0.27472,3641.1,3640.9,0.27473]
[1736001722358,0.27472,3641.1,3641.0,0.27472]
[1736001725160,0.8,3641.3,3640.8,2.394]
[1736001725656,0.27472,3641.1,3641.0,0.27472]
[1736001726864,0.8,3641.3,3640.8,2.394]
[1736001727172,0.27471,3641.2,3641.1,0.27471]
[1736001733171,0.8,3641.3,3640.8,2.394]
[1736001733376,0.27471,3641.1,3641.0,0.27471]
[1736001734070,0.27473,3640.9,3640.8,0.27473]
[1736001734368,0.27474,3640.8,3640.7,0.27474]
[1736001734575,0.27475,3640.6,3640.5,4.30383033]
[1736001734771,5.6907139,3640.6,3640.5,4.30383033]
[1736001735273,6.5191139,3640.6,3640.5,4.30383033]
[1736001735978,0.27478,3640.3,3640.0,0.27479]
[1736001736176,0.27478,3640.2,3640.0,0.27479]
[1736001736379,1.13478,3640.2,3640.0,0.27479]
[1736001737976,0.27479,3640.1,3639.9,0.2748]
[1736001738575,0.86,3640.2,3639.9,0.2748]
[1736001738874,1.13478,3640.2,3639.9,0.2748]
[1736001739076,0.86,3640.2,3639.9,0.2748]
[1736001739278,0.27479,3640.1,3639.9,0.2748]
[1736001739470,0.8105,3640.1,3639.9,0.2748]
[1736001739675,1.08529,3640.1,3639.9,0.2748]
[1736001739877,0.8105,3640.1,3639.9,0.2748]
[1736001740278,0.8105,3640.1,3640.0,0.27479]
[1736001742381,3.2078,3640.6,3640.4,0.27476]
[1736001742578,3.2078,3640.6,3640.5,1.11936]
[1736001742882,0.27477,3640.4,3640.2,0.27478]
[1736001743478,0.8389,3640.3,3640.2,0.27478]
[1736001744882,1.11367,3640.3,3640.2,0.27478]
[1736001745584,0.8389,3640.3,3640.2,0.27478]
[1736001745969,1.11367,3640.3,3640.2,0.27478]
[1736001746177,0.8389,3640.3,3640.2,0.27478]
[1736001746578,0.27477,3640.4,3640.0,0.8235]
[1736001746784,0.27476,3640.4,3640.2,0.27478]
[1736001747278,0.8569,3640.5,3640.1,0.27478]
[1736001747483,0.27478,3640.3,3640.2,0.27478]
[1736001747674,0.8569,3640.5,3640.0,0.8235]
[1736001747872,0.8569,3640.5,3640.2,0.27477]
[1736001747873,0.27477,3640.4,3640.2,0.27477]
[1736001749796,0.27478,3640.3,3640.1,0.27478]
[1736001749991,0.8569,3640.5,3640.1,0.27478]
[1736001750295,1.659,3640.5,3640.0,0.8235]
[1736001750488,0.27481,3639.9,3639.7,0.27482]
[1736001750687,1.6254,3639.8,3639.4,5.17463033]
[1736001750993,2.2081639,3639.7,3639.3,7.51163033]
[1736001751188,0.27484,3639.4,3639.3,7.51163033]
[1736001751695,2.4830039,3639.4,3639.3,4.30383033]
[1736001752699,0.27485,3639.2,3639.0,1.14567]
[1736001754496,0.27485,3639.2,3639.1,0.27486]
[1736001755089,0.27485,3639.2,3639.0,1.14567]
[1736001755591,2.2081639,3639.4,3638.8,0.27488]
[1736001755592,0.27487,3639.0,3638.8,0.27488]
[1736001756391,0.27487,3639.0,3638.6,1.6506]
[1736001756597,0.27487,3639.0,3638.9,0.27488]
[1736001757098,0.27487,3639.1,3638.9,0.27488]
[1736001757494,0.86,3639.0,3638.9,0.27488]
[1736001757797,0.86,3639.0,3638.8,0.27488]
[1736001758394,1.13487,3639.0,3638.8,0.27488]
[1736001758692,1.13487,3639.0,3638.7,0.27489]
[1736001758693,0.27488,3638.9,3638.7,0.27489]
[1736001759200,0.86,3639.0,3638.6,1.6506]
[1736001759401,1.13487,3639.0,3638.7,0.27489]
[1736001759593,0.27486,3639.2,3639.0,0.27487]
[1736001759793,0.27486,3639.1,3639.0,0.27487]
[1736001759996,1.12515,3639.3,3639.2,0.27485]
[1736001760199,0.27485,3639.3,3639.2,0.27485]
[1736001760395,0.27484,3639.4,3639.2,1.97915]
[1736001760697,6.2662639,3639.7,3639.2,1.97915]
[1736001760698,4.0581,3639.7,3639.4,0.27483]
[1736001760900,4.0581,3639.7,3639.3,0.27484]
[1736001761101,0.27483,3639.6,3639.4,0.27484]
[1736001761898,1.12512,3639.7,3639.5,0.27483]
[1736001762099,1.12512,3639.7,3639.2,1.7043]
[1736001762100,1.12512,3639.7,3639.4,0.27483]
[1736001762296,0.27483,3639.6,3639.4,0.27483]
[1736001762497,0.8503,3639.7,3639.2,1.7043]
[1736001762691,0.27484,3639.4,3639.2,1.97915]
[1736001763104,3.0584639,3639.7,3639.2,1.7043]
[1736001763105,3.9270639,3639.7,3639.2,1.7043]
[1736001763302,0.27485,3639.3,3639.2,1.7043]
[1736001763500,0.27484,3639.4,3639.2,1.97915]
[1736001763805,3.9270639,3639.7,3639.1,0.8021]
[1736001763995,0.27485,3639.2,3639.1,0.8021]
[1736001764398,5.4159639,3639.4,3638.7,1.6131]
[1736001764593,5.4159639,3639.4,3638.8,0.7927]
[1736001764594,0.27488,3638.9,3638.8,0.7927]
[1736001765701,0.27488,3638.9,3638.8,1.06758]
[1736001766600,0.27488,3638.9,3638.8,0.7927]
[1736001767407,0.27488,3638.9,3638.8,1.06758]
[1736001767802,0.27488,3638.9,3638.8,0.7927]
[1736001770910,0.27488,3638.9,3638.8,1.06758]
[1736001774209,0.8182,3639.0,3638.9,0.27488]
[1736001774210,1.09307,3639.0,3638.9,0.27488]
[1736001774708,0.27488,3638.9,3638.8,1.06758]
[1736001774898,0.8182,3639.0,3638.8,1.06758]
[1736001775102,1.09307,3639.0,3638.9,0.27488]
[1736001775298,1.09307,3639.0,3638.8,0.7927]
[1736001775299,5.4159639,3639.4,3638.8,0.7927]
[1736001775601,0.27485,3639.3,3639.2,0.27485]
[1736001776007,3.48264,3639.4,3638.8,0.7927]
[1736001776209,3.48264,3639.4,3639.3,0.27485]
[1736001776600,3.2078,3639.4,3639.3,0.27485]
[1736001776913,3.48264,3639.4,3639.3,0.27485]
[1736001777606,0.27485,3639.3,3639.2,0.27485]
[1736001778005,3.48264,3639.4,3639.2,0.27485]
[1736001778411,0.27485,3639.3,3639.1,0.27485]
[1736001778904,2.2081639,3639.4,3639.1,0.27485]
[1736001779100,0.27485,3639.2,3639.1,0.27485]
[1736001779298,0.27487,3639.0,3638.9,0.27487]
[1736001779907,0.27487,3639.1,3638.9,0.27487]
[1736001780105,2.2081639,3639.4,3638.9,0.27487]
[1736001780306,2.2081639,3639.1,3638.8,0.7927]